fUST/lending_fUST_20250924
["ID","MTS","AMOUNT","RATE_DAILY","PERIOD"]
[387373540,1758707441167,-480.0,0.00020315,2]
[387373542,1758707441176,-480.0,0.00020315,2]
[387373544,1758707441186,-480.0,0.00020315,2]
[387373546,1758707441195,-480.0,0.00020315,2]
[387373548,1758707441204,-480.0,0.00020315,2]
[387373550,1758707441213,-916.67,0.00020315,2]
[387373552,1758707441222,-480.0,0.00020315,2]
[387373554,1758707441231,-1235.41,0.00020315,2]
[387373556,1758707441241,-151.0,0.00020315,2]
[387373557,1758707441250,-151.0,0.00020315,2]
[387373559,1758707441259,-237.69904824,0.00020315,2]
[387373561,1758707441269,-480.0,0.00020315,2]
[387373563,1758707441278,-3494.95,0.00020372,2]
[387373565,1758707441287,-168.0,0.00020393,2]
[387373567,1758707441296,-168.0,0.00020416,2]
[387373569,1758707441305,-439.98,0.00020448,2]
[387373571,1758707441314,-278.524549,0.00020468,2]
[387373573,1758707441323,-1505.48670656,0.00020468,2]
[387373575,1758707441332,-672.60979925,0.00020468,2]
[387373577,1758707441342,-1501.86746701,0.00020468,2]
[387373579,1758707441351,-599.50223478,0.00020468,2]
[387373581,1758707441360,-179.73223324,0.00020468,2]
[387373582,1758707441369,-1500.0,0.00020468,2]
[387373584,1758707441378,-1500.0,0.00020468,2]
[387373586,1758707441387,-508.10150517,0.00020468,2]
[387373588,1758707441396,-500.0,0.00020468,2]
[387373590,1758707441405,-1155.67925175,0.00020468,2]
[387373592,1758707441414,-1020.72828641,0.00020468,2]
[387373594,1758707441423,-1500.0,0.00020468,2]
[387373596,1758707441433,-1500.0,0.00020468,2]
[387373598,1758707441442,-258.43911064,0.00020468,2]
[387373600,1758707441451,-1500.0,0.00020468,2]
[387373602,1758707441460,-1500.0,0.00020468,2]
[387373604,1758707441469,-1500.0,0.00020468,2]
[387373605,1758707441478,-1500.0,0.00020468,2]
[387373607,1758707441487,-1500.0,0.00020468,2]
[387373609,1758707441496,-850.19579054,0.00020468,2]
[387373611,1758707441506,-1500.0,0.00020568,2]
[387373613,1758707441515,-500.0,0.00020574,2]
[387373615,1758707441524,-500.62546405,0.00020574,2]
[387373617,1758707441533,-502.26983615,0.00020574,2]
[387373619,1758707441542,-480.0,0.00020585,2]
[387373621,1758707441551,-480.0,0.00020585,2]
[387373623,1758707441560,-480.0,0.00020585,2]
[387373625,1758707441570,-480.0,0.00020585,2]
[387373627,1758707441579,-480.68,0.00020585,2]
[387373629,1758707441588,-1093.29,0.00020585,2]
[387373631,1758707441598,-480.0,0.00020585,2]
[387373633,1758707441607,-480.0,0.00020586,2]
[387373635,1758707441617,-480.0,0.00020586,2]
[387373636,1758707441627,-480.0,0.00020586,2]
[387373638,1758707441636,-151.0,0.00020586,2]
[387373641,1758707441651,-480.0,0.00020586,2]
[387373642,1758707441660,-480.0,0.00020586,2]
[387373643,1758707441670,-2433.11,0.00020586,2]
[387373644,1758707441678,-480.0,0.00020586,2]
[387373645,1758707441687,-480.0,0.00020586,2]
[387373646,1758707441696,-950.85,0.00020586,2]
[387373647,1758707441705,-1372.31,0.00020586,2]
[387373648,1758707441713,-480.0,0.00020586,2]
[387373649,1758707441722,-1505.98,0.00020586,2]
[387373650,1758707441731,-480.0,0.00020586,2]
[387373651,1758707441740,-480.0,0.00020586,2]
[387373652,1758707441749,-480.0,0.00020586,2]
[387373653,1758707441758,-480.0,0.00020586,2]
[387373654,1758707441767,-480.0,0.00020586,2]
[387373655,1758707441776,-480.0,0.00020586,2]
[387373656,1758707441793,-480.0,0.00020586,2]
[387373657,1758707441803,-480.0,0.00020586,2]
[387373658,1758707441811,-528.2,0.00020586,2]
[387373659,1758707441821,-480.0,0.00020586,2]
[387373660,1758707441830,-480.0,0.00020586,2]
[387373661,1758707441839,-480.0,0.00020586,2]
[387373662,1758707441913,-480.0,0.00020586,2]
[387373663,1758707441923,-799.73,0.00020586,2]
[387373664,1758707441932,-480.0,0.00020586,2]
[387373665,1758707441942,-480.0,0.00020586,2]
[387373666,1758707441951,-480.0,0.00020586,2]
[387373667,1758707441960,-480.0,0.00020586,2]
[387373668,1758707441970,-627.43,0.00020586,2]
[387373669,1758707441979,-617.26,0.00020586,2]
[387373670,1758707441988,-480.0,0.00020586,2]
[387373671,1758707441997,-480.0,0.00020586,2]
[387373673,1758707442007,-480.0,0.00020586,2]
[387373675,1758707442019,-1030.38,0.00020586,2]
[387373677,1758707442029,-480.0,0.00020586,2]
[387373679,1758707442038,-480.0,0.00020586,2]
[387373681,1758707442047,-480.0,0.00020586,2]
[387373683,1758707442056,-1355.19,0.00020586,2]
[387373684,1758707442067,-2729.88,0.00020586,2]
[387373686,1758707442076,-480.0,0.00020586,2]
[387373688,1758707442085,-1164.38,0.00020586,2]
[387373690,1758707442094,-150.11122862,0.00020587,2]
[387373692,1758707442103,-480.0,0.00020587,2]
[387373694,1758707442112,-480.0,0.00020587,2]
[387373696,1758707442121,-480.0,0.00020587,2]
[387373698,1758707442131,-480.0,0.00020587,2]
[387373700,1758707442141,-480.0,0.00020587,2]
[387373702,1758707442150,-631.11,0.00020587,2]
[387373704,1758707442159,-480.0,0.00020587,2]
[387373706,1758707442170,-480.0,0.00020587,2]
[387373708,1758707442179,-480.0,0.00020587,2]
[387373710,1758707442189,-480.0,0.00020587,2]
[387373712,1758707442198,-232.11439847,0.00020587,2]
[387373714,1758707442208,-480.0,0.00020587,2]
[387373716,1758707442217,-480.0,0.00020587,2]
[387373718,1758707442227,-901.83,0.00020587,2]
[387373720,1758707442237,-1440.31,0.00020587,2]
[387373723,1758707442247,-480.0,0.00020587,2]
[387373725,1758707442256,-480.0,0.00020587,2]
[387373727,1758707442265,-480.0,0.00020587,2]
[387373729,1758707442275,-2517.39,0.00020587,2]
[387373731,1758707442284,-480.0,0.00020587,2]
[387373733,1758707442294,-480.0,0.00020587,2]
[387373736,1758707442303,-1162.04,0.00020587,2]
[387373738,1758707442312,-480.0,0.00020587,2]
[387373740,1758707442322,-480.0,0.00020587,2]
[387373742,1758707442331,-480.0,0.00020587,2]
[387373744,1758707442341,-2996.54,0.00020587,2]
[387373746,1758707442350,-480.0,0.00020587,2]
[387373748,1758707442359,-490.73865213,0.00020587,2]
[387373750,1758707442368,-480.0,0.00020587,2]
[387373752,1758707442378,-608.81,0.00020587,2]
[387373754,1758707442386,-480.0,0.00020588,2]
[387373756,1758707442396,-480.0,0.00020588,2]
[387373758,1758707442405,-5048.94,0.00020588,2]
[387373760,1758707442415,-2136.74,0.00020588,2]
[387373762,1758707442424,-857.2,0.00020588,2]
[387373764,1758707442433,-480.0,0.00020589,2]
[387373766,1758707442441,-151.0,0.00020589,2]
[387373768,1758707442451,-480.0,0.00020589,2]
[387373770,1758707442460,-480.0,0.00020589,2]
[387373772,1758707442469,-480.0,0.00020589,2]
[387373774,1758707442478,-480.0,0.00020589,2]
[387373776,1758707442488,-916.67,0.00020589,2]
[387373778,1758707442497,-480.0,0.00020589,2]
[387373780,1758707442506,-1235.41,0.00020589,2]
[387373782,1758707442515,-487.68362795,0.00020589,2]
[387373784,1758707442525,-151.990519,0.00020627,2]
[387373785,1758707442534,-160.0,0.0002077,2]
[387373787,1758707442543,-488.95304633,0.0002081,2]
[387373789,1758707442552,-480.0,0.00020859,2]
[387373791,1758707442561,-480.0,0.00020859,2]
[387373793,1758707442570,-480.0,0.00020859,2]
[387373795,1758707442579,-480.0,0.00020859,2]
[387373797,1758707442588,-480.68,0.00020859,2]
[387373799,1758707442597,-1093.29,0.00020859,2]
[387373801,1758707442606,-480.0,0.00020859,2]
[387373803,1758707442615,-537.67347764,0.0002086,2]
[387373805,1758707442625,-480.0,0.0002086,2]
[387373807,1758707442634,-480.0,0.0002086,2]
[387373809,1758707442643,-480.0,0.0002086,2]
[387373811,1758707442654,-480.0,0.0002086,2]
[387373813,1758707442663,-2433.11,0.0002086,2]
[387373815,1758707442672,-480.0,0.0002086,2]
[387373817,1758707442682,-480.0,0.0002086,2]
[387373819,1758707442691,-950.85,0.0002086,2]
[387373821,1758707442700,-1372.31,0.0002086,2]
[387373823,1758707442709,-480.0,0.0002086,2]
[387373825,1758707442719,-1505.98,0.0002086,2]
[387373827,1758707442728,-480.0,0.0002086,2]
[387373829,1758707442738,-480.0,0.0002086,2]
[387373831,1758707442747,-480.0,0.0002086,2]
[387373833,1758707442757,-480.0,0.0002086,2]
[387373835,1758707442766,-268.9314722,0.0002086,2]
[387373837,1758707442776,-480.0,0.0002086,2]
[387373839,1758707442785,-480.0,0.0002086,2]
[387373841,1758707442794,-480.0,0.0002086,2]
[387373843,1758707442803,-528.2,0.0002086,2]
[387373846,1758707442812,-480.0,0.0002086,2]
[387373849,1758707442821,-480.0,0.0002086,2]
[387373852,1758707442830,-480.0,0.0002086,2]
[387373855,1758707442839,-480.0,0.0002086,2]
[387373856,1758707442848,-799.73,0.0002086,2]
[387373858,1758707442857,-480.0,0.0002086,2]
[387373859,1758707442867,-480.0,0.0002086,2]
[387373860,1758707442876,-480.0,0.0002086,2]
[387373861,1758707442885,-480.0,0.0002086,2]
[387373862,1758707442894,-627.43,0.0002086,2]
[387373863,1758707442903,-617.26,0.0002086,2]
[387373864,1758707442913,-480.0,0.0002086,2]
[387373865,1758707442922,-480.0,0.0002086,2]
[387373866,1758707442931,-480.0,0.0002086,2]
[387373867,1758707442941,-1030.38,0.0002086,2]
[387373868,1758707442950,-480.0,0.0002086,2]
[387373869,1758707442959,-480.0,0.0002086,2]
[387373870,1758707442968,-480.0,0.0002086,2]
[387373871,1758707442977,-1355.19,0.0002086,2]
[387373872,1758707442986,-2729.88,0.0002086,2]
[387373873,1758707442995,-480.0,0.0002086,2]
[387373874,1758707443004,-1164.38,0.0002086,2]
[387373875,1758707443013,-480.0,0.00020861,2]
[387373876,1758707443026,-480.0,0.00020861,2]
[387373877,1758707443035,-368.49716045,0.00020861,2]
[387373878,1758707443045,-480.0,0.00020861,2]
[387373879,1758707443055,-480.0,0.00020861,2]
[387373880,1758707443065,-631.11,0.00020861,2]
[387373881,1758707443075,-480.0,0.00020861,2]
[387373882,1758707443084,-480.0,0.00020861,2]
[387373883,1758707443096,-305.93639423,0.00020861,2]
[387373884,1758707443105,-480.0,0.00020861,2]
[387373885,1758707443115,-480.0,0.00020861,2]
[387373886,1758707443125,-480.0,0.00020861,2]
[387373887,1758707443134,-293.059929,0.00020861,2]
[387373888,1758707443143,-901.83,0.00020861,2]
[387373889,1758707443153,-1440.31,0.00020861,2]
[387373890,1758707443163,-480.0,0.00020861,2]
[387373891,1758707443172,-480.0,0.00020861,2]
[387373892,1758707443181,-480.0,0.00020861,2]
[387373893,1758707443191,-2517.39,0.00020861,2]
[387373894,1758707443201,-480.0,0.00020861,2]
[387373895,1758707443210,-480.0,0.00020861,2]
[387373896,1758707443220,-1162.04,0.00020861,2]
[387373897,1758707443229,-480.0,0.00020861,2]
[387373898,1758707443238,-480.0,0.00020861,2]
[387373900,1758707443248,-480.0,0.00020861,2]
[387373901,1758707443258,-2996.54,0.00020861,2]
[387373902,1758707443267,-480.0,0.00020861,2]
[387373903,1758707443276,-480.0,0.00020861,2]
[387373904,1758707443285,-608.81,0.00020861,2]
[387373905,1758707443295,-480.0,0.00020862,2]
[387373906,1758707443304,-5048.94,0.00020862,2]
[387373907,1758707443376,-2136.74,0.00020862,2]
[387373908,1758707443386,-857.2,0.00020862,2]
[387373909,1758707443396,-480.0,0.00020863,2]
[387373910,1758707443405,-373.43655101,0.00020863,2]
[387373911,1758707443414,-480.0,0.00020863,2]
[387373912,1758707443423,-480.0,0.00020863,2]
[387373913,1758707443433,-916.67,0.00020863,2]
[387373914,1758707443442,-480.0,0.00020863,2]
[387373915,1758707443451,-1235.41,0.00020863,2]
[387373916,1758707443461,-420.0,0.00020899,2]
[387373917,1758707443470,-201.0,0.00020955,2]
[387373918,1758707443479,-2330.30651567,0.00020972,2]
[387373919,1758707443488,-201.0,0.00020996,2]
[387373920,1758707443498,-2000.0,0.00021016,2]
[387373921,1758707443507,-2000.0,0.00021016,2]
[387373922,1758707443515,-2000.0,0.00021016,2]
[387373923,1758707443524,-1283.70442496,0.00021016,2]
[387373924,1758707443534,-2000.0,0.00021016,2]
[387373925,1758707443543,-509.37703983,0.00021016,2]
[387373926,1758707443551,-502.3371082,0.00021016,2]
[387373927,1758707443561,-2000.0,0.00021016,2]
[387373928,1758707443569,-2000.0,0.00021016,2]
[387373929,1758707443579,-201.0,0.00021076,2]
[387373930,1758707443588,-151.0,0.000211,3]
[387373932,1758707443597,-500.0,0.00021116,2]
[387373934,1758707443606,-500.0,0.00021122,2]
[387373936,1758707443615,-480.0,0.00021133,2]
[387373938,1758707443625,-480.0,0.00021133,2]
[387373940,1758707443634,-480.0,0.00021133,2]
[387373942,1758707443643,-480.0,0.00021133,2]
[387373944,1758707443659,-480.68,0.00021133,2]
[387373946,1758707443669,-1093.29,0.00021133,2]
[387373948,1758707443678,-480.0,0.00021133,2]
[387373950,1758707443687,-480.0,0.00021134,2]
[387373952,1758707443696,-480.0,0.00021134,2]
[387373954,1758707443705,-480.0,0.00021134,2]
[387373957,1758707443715,-480.0,0.00021134,2]
[387373959,1758707443724,-2433.11,0.00021134,2]
[387373961,1758707443734,-480.0,0.00021134,2]
[387373963,1758707443743,-480.0,0.00021134,2]
[387373965,1758707443754,-950.85,0.00021134,2]
[387373968,1758707443763,-1372.31,0.00021134,2]
[387373970,1758707443772,-1505.98,0.00021134,2]
[387373972,1758707443781,-480.0,0.00021134,2]
[387373974,1758707443790,-480.0,0.00021134,2]
[387373976,1758707443799,-480.0,0.00021134,2]
[387373978,1758707443808,-480.0,0.00021134,2]
[387373979,1758707443817,-480.0,0.00021134,2]
[387373981,1758707443826,-480.0,0.00021134,2]
[387373983,1758707443835,-506.89163456,0.00021134,2]
[387373985,1758707443844,-528.2,0.00021134,2]
[387373987,1758707443853,-480.0,0.00021134,2]
[387373989,1758707443862,-480.0,0.00021134,2]
[387373991,1758707443871,-480.0,0.00021134,2]
[387373993,1758707443880,-480.0,0.00021134,2]
[387373995,1758707443889,-799.73,0.00021134,2]
[387373997,1758707443898,-480.0,0.00021134,2]
[387373999,1758707443908,-480.0,0.00021134,2]
[387374001,1758707443917,-480.0,0.00021134,2]
[387374003,1758707443926,-480.0,0.00021134,2]
[387374005,1758707443935,-627.43,0.00021134,2]
[387374007,1758707443944,-617.26,0.00021134,2]
[387374009,1758707443954,-480.0,0.00021134,2]
[387374011,1758707443963,-480.0,0.00021134,2]
[387374013,1758707443972,-220.14755957,0.00021134,2]
[387374015,1758707443982,-1030.38,0.00021134,2]
[387374017,1758707443991,-480.0,0.00021134,2]
[387374019,1758707444000,-480.0,0.00021134,2]
[387374021,1758707444010,-480.0,0.00021134,2]
[387374023,1758707444021,-1355.19,0.00021134,2]
[387374025,1758707444031,-2729.88,0.00021134,2]
[387374026,1758707444039,-480.0,0.00021134,2]
[387374027,1758707444049,-1164.38,0.00021134,2]
[387374028,1758707444059,-480.0,0.00021135,2]
[387374029,1758707444069,-631.11,0.00021135,2]
[387374030,1758707444077,-480.0,0.00021135,2]
[387374031,1758707444086,-480.0,0.00021135,2]
[387374032,1758707444096,-480.0,0.00021135,2]
[387374033,1758707444105,-579.99628243,0.00021135,2]
[387374034,1758707444114,-402.93738698,0.00021135,2]
[387374035,1758707444123,-901.83,0.00021135,2]
[387374036,1758707444131,-1440.31,0.00021135,2]
[387374037,1758707444140,-321.27739759,0.00021135,2]
[387374038,1758707444149,-480.0,0.00021135,2]
[387374040,1758707444158,-480.0,0.00021135,2]
[387374042,1758707444167,-2517.39,0.00021135,2]
[387374044,1758707444176,-480.0,0.00021135,2]
[387374046,1758707444186,-480.0,0.00021135,2]
[387374048,1758707444195,-1162.04,0.00021135,2]
[387374050,1758707444204,-480.0,0.00021135,2]
[387374052,1758707444213,-480.0,0.00021135,2]
[387374054,1758707444222,-380.81743113,0.00021135,2]
[387374056,1758707444231,-2996.54,0.00021135,2]
[387374058,1758707444241,-480.0,0.00021135,2]
[387374060,1758707444249,-480.0,0.00021135,2]
[387374062,1758707444258,-608.81,0.00021135,2]
[387374064,1758707444267,-190.54448709,0.00021136,2]
[387374066,1758707444276,-5048.94,0.00021136,2]
[387374068,1758707444285,-2136.74,0.00021136,2]
[387374070,1758707444294,-857.2,0.00021136,2]
[387374072,1758707444303,-480.0,0.00021137,2]
[387374074,1758707444312,-151.0,0.00021137,2]
[387374076,1758707444322,-480.0,0.00021137,2]
[387374077,1758707444331,-480.0,0.00021137,2]
[387374079,1758707444340,-916.67,0.00021137,2]
[387374081,1758707444349,-480.0,0.00021137,2]
[387374082,1758707444360,-1235.41,0.00021137,2]
[387374083,1758707444368,-168.0,0.0002115,2]
[387374084,1758707444378,-593.3386716,0.00021151,2]
[387374085,1758707444387,-153.0,0.00021151,2]
[387374086,1758707444397,-448.3882223,0.00021151,2]
[387374087,1758707444406,-500.0,0.00021257,2]
[387374088,1758707444415,-500.0,0.00021257,2]
[387374089,1758707444426,-200.0,0.00021257,2]
[387374090,1758707444434,-500.0,0.00021257,2]
[387374092,1758707444444,-200.0,0.00021257,2]
[387374094,1758707444454,-500.0,0.00021257,2]
[387374096,1758707444463,-200.0,0.00021257,2]
[387374098,1758707444472,-200.0,0.00021257,2]
[387374100,1758707444481,-500.0,0.00021257,2]
[387374102,1758707444490,-200.0,0.00021257,2]
[387374104,1758707444499,-500.0,0.00021257,2]
[387374106,1758707444508,-200.0,0.00021257,2]
[387374108,1758707444517,-209.40437684,0.00021257,2]
[387374110,1758707444526,-256.14491206,0.00021257,2]
[387374112,1758707444535,-500.0,0.00021257,2]
[387374114,1758707444544,-350.0,0.00021257,2]
[387374116,1758707444553,-500.0,0.00021257,2]
[387374118,1758707444562,-350.0,0.00021257,2]
[387374120,1758707444571,-500.0,0.00021257,2]
[387374122,1758707444580,-350.0,0.00021257,2]
[387374124,1758707444589,-500.0,0.00021257,2]
[387374126,1758707444598,-350.0,0.00021257,2]
[387374128,1758707444607,-500.0,0.00021257,2]
[387374130,1758707444616,-350.0,0.00021257,2]
[387374132,1758707444626,-350.0,0.00021257,2]
[387374134,1758707444635,-350.0,0.00021257,2]
[387374138,1758707444704,-350.0,0.00021257,2]
[387374139,1758707444714,-350.0,0.00021257,2]
[387374140,1758707444725,-343.65648943,0.00021257,2]
[387374141,1758707444734,-252.0,0.00021269,2]
[387374142,1758707444744,-5242.43,0.00021298,2]
[387374143,1758707444753,-949.0,0.000213,2]
[387374144,1758707444762,-21343.33425728,0.00021313,2]
[387374145,1758707444772,-260.0,0.00021318,2]
[387374146,1758707444781,-151.0,0.000214,4]
[387374147,1758707444790,-480.0,0.00021407,2]
[387374148,1758707444800,-480.0,0.00021407,2]
[387374149,1758707444809,-480.0,0.00021407,2]
[387374150,1758707444818,-480.0,0.00021407,2]
[387374151,1758707444828,-480.68,0.00021407,2]
[387374152,1758707444837,-1093.29,0.00021407,2]
[387374153,1758707444847,-480.0,0.00021407,2]
[387374154,1758707444856,-480.0,0.00021408,2]
[387374155,1758707444865,-480.0,0.00021408,2]
[387374156,1758707444875,-480.0,0.00021408,2]
[387374157,1758707444885,-480.0,0.00021408,2]
[387374158,1758707444894,-2433.11,0.00021408,2]
[387374159,1758707444903,-480.0,0.00021408,2]
[387374160,1758707444913,-480.0,0.00021408,2]
[387374161,1758707444922,-950.85,0.00021408,2]
[387374162,1758707444931,-1372.31,0.00021408,2]
[387374163,1758707444941,-1505.98,0.00021408,2]
[387374164,1758707444951,-288.02002973,0.00021408,2]
[387374165,1758707444961,-480.0,0.00021408,2]
[387374166,1758707444971,-480.0,0.00021408,2]
[387374167,1758707444980,-480.0,0.00021408,2]
[387374168,1758707444989,-480.0,0.00021408,2]
[387374169,1758707444999,-480.0,0.00021408,2]
[387374170,1758707445008,-528.2,0.00021408,2]
[387374171,1758707445020,-480.0,0.00021408,2]
[387374172,1758707445030,-480.0,0.00021408,2]
[387374173,1758707445039,-480.0,0.00021408,2]
[387374174,1758707445048,-480.0,0.00021408,2]
[387374175,1758707445059,-799.73,0.00021408,2]
[387374176,1758707445068,-480.0,0.00021408,2]
[387374177,1758707445077,-480.0,0.00021408,2]
[387374178,1758707445086,-480.0,0.00021408,2]
[387374179,1758707445097,-480.0,0.00021408,2]
[387374180,1758707445106,-627.43,0.00021408,2]
[387374181,1758707445115,-617.26,0.00021408,2]
[387374182,1758707445124,-480.0,0.00021408,2]
[387374183,1758707445133,-480.0,0.00021408,2]
[387374184,1758707445143,-1030.38,0.00021408,2]
[387374185,1758707445152,-480.0,0.00021408,2]
[387374186,1758707445162,-208.65849592,0.00021408,2]
[387374187,1758707445171,-480.0,0.00021408,2]
[387374188,1758707445180,-1355.19,0.00021408,2]
[387374189,1758707445190,-2729.88,0.00021408,2]
[387374190,1758707445199,-480.0,0.00021408,2]
[387374191,1758707445208,-1164.38,0.00021408,2]
[387374192,1758707445218,-480.0,0.00021409,2]
[387374193,1758707445227,-631.11,0.00021409,2]
[387374194,1758707445237,-480.0,0.00021409,2]
[387374195,1758707445246,-480.0,0.00021409,2]
[387374196,1758707445255,-480.0,0.00021409,2]
[387374197,1758707445265,-901.83,0.00021409,2]
[387374198,1758707445275,-1440.31,0.00021409,2]
[387374199,1758707445284,-480.0,0.00021409,2]
[387374200,1758707445293,-480.0,0.00021409,2]
[387374201,1758707445303,-2517.39,0.00021409,2]
[387374202,1758707445313,-480.0,0.00021409,2]
[387374203,1758707445322,-480.0,0.00021409,2]
[387374204,1758707445332,-1162.04,0.00021409,2]
[387374206,1758707445341,-480.0,0.00021409,2]
[387374207,1758707445351,-480.0,0.00021409,2]
[387374208,1758707445360,-2996.54,0.00021409,2]
[387374209,1758707445369,-322.97889396,0.00021409,2]
[387374210,1758707445379,-480.0,0.00021409,2]
[387374211,1758707445388,-608.81,0.00021409,2]
[387374212,1758707445397,-5048.94,0.0002141,2]
[387374213,1758707445406,-2136.74,0.0002141,2]
[387374214,1758707445415,-857.2,0.0002141,2]
[387374215,1758707445425,-480.0,0.00021411,2]
[387374216,1758707445434,-480.0,0.00021411,2]
[387374217,1758707445444,-480.0,0.00021411,2]
[387374218,1758707445453,-916.67,0.00021411,2]
[387374219,1758707445462,-480.0,0.00021411,2]
[387374220,1758707445471,-1235.41,0.00021411,2]
[387374221,1758707445480,-229.0,0.00021479,4]
[387374222,1758707445489,-4060.18,0.00021486,2]
[387374223,1758707445499,-500.0,0.00021488,2]
[387374224,1758707445508,-500.0,0.00021488,2]
[387374225,1758707445517,-501.24338984,0.00021524,2]
[387374226,1758707445527,-500.94425687,0.00021524,2]
[387374227,1758707445536,-500.0,0.00021548,2]
[387374228,1758707445545,-511.97124642,0.00021548,2]
[387374229,1758707445554,-500.0,0.00021548,2]
[387374230,1758707445563,-500.0,0.00021548,2]
[387374231,1758707445573,-2500.0,0.00021564,2]
[387374233,1758707445582,-1500.0,0.00021564,2]
[387374234,1758707445591,-2500.0,0.00021564,2]
[387374236,1758707445601,-2500.0,0.00021564,2]
[387374238,1758707445611,-500.0,0.00021574,2]
[387374240,1758707445620,-500.0,0.00021574,2]
[387374242,1758707445629,-529.23636076,0.00021577,2]
[387374244,1758707445638,-501.17606149,0.00021577,2]
[387374246,1758707445647,-500.0,0.00021577,2]
[387374248,1758707445656,-500.0,0.00021577,2]
[387374250,1758707445665,-500.0,0.00021577,2]
[387374252,1758707445674,-525.60880324,0.00021577,2]
[387374254,1758707445683,-500.0,0.00021577,2]
[387374255,1758707445693,-500.0,0.00021577,2]
[387374257,1758707445702,-500.0,0.00021577,2]
[387374259,1758707445710,-500.0,0.00021577,2]
[387374260,1758707445719,-500.0,0.00021577,2]
[387374261,1758707445729,-500.0,0.00021577,2]
[387374262,1758707445738,-500.0,0.00021577,2]
[387374263,1758707445747,-501.21966864,0.00021577,2]
[387374264,1758707445756,-500.0,0.00021577,2]
[387374265,1758707445765,-500.0,0.00021577,2]
[387374266,1758707445775,-161.09003437,0.00021577,2]
[387374267,1758707445785,-500.0,0.00021577,2]
[387374268,1758707445794,-500.0,0.00021577,2]
[387374269,1758707445803,-501.03977974,0.00021577,2]
[387374270,1758707445812,-500.54082936,0.00021577,2]
[387374271,1758707445821,-500.0,0.00021577,2]
[387374272,1758707445831,-501.96845644,0.00021577,2]
[387374273,1758707445840,-190.60463269,0.00021577,2]
[387374274,1758707445849,-500.0,0.00021577,2]
[387374276,1758707445859,-592.2111529,0.00021577,2]
[387374278,1758707445868,-502.75021354,0.00021578,2]
[387374280,1758707445877,-500.0,0.00021578,2]
[387374291,1758707445942,-500.0,0.00021578,2]
[387374293,1758707445951,-500.0,0.00021578,2]
[387374295,1758707445960,-448.69437294,0.00021578,2]
[387374297,1758707445970,-516.27022145,0.00021578,2]
[387374298,1758707445980,-500.0,0.00021578,2]
[387374300,1758707445989,-170.39552554,0.00021578,2]
[387374302,1758707445999,-500.0,0.00021578,2]
[387374304,1758707446008,-500.0,0.00021578,2]
[387374306,1758707446020,-500.0,0.00021578,2]
[387374308,1758707446029,-500.0,0.00021578,2]
[387374310,1758707446038,-500.0,0.00021578,2]
[387374312,1758707446047,-500.0,0.00021578,2]
[387374314,1758707446058,-500.0,0.00021578,2]
[387374316,1758707446067,-500.0,0.00021578,2]
[387374317,1758707446077,-500.0,0.00021578,2]